bitfinex/quotes_ETHUSD_20260209
["timestamp","ask_amount","ask_price","bid_price","bid_amount"]
[1770600874248,0.93020708,2089.2,2088.7,0.05256242]
[1770600874585,15.5057086,2090.2,2088.7,0.05256242]
[1770600874586,1.19622948,2089.9,2089.0,0.05256242]
[1770600874880,2.12638614,2090.0,2089.3,0.05256242]
[1770600875173,0.93020708,2090.0,2089.3,0.05256242]
[1770600875383,2.12638357,2090.0,2089.4,17.04939471]
[1770600875583,2.12638357,2090.0,2089.1,17.10195713]
[1770600876084,2.12638357,2090.0,2089.1,17.04939471]
[1770600876392,4.78400657,2090.3,2089.2,0.05256242]
[1770600876570,4.78400657,2090.3,2089.3,17.04939471]
[1770600877465,1.03260708,2090.2,2089.3,17.04939471]
[1770600877668,1.03260708,2090.2,2088.9,0.001]
[1770600877886,1.03260708,2090.2,2089.0,17.04939471]
[1770600878411,1.03260708,2089.8,2088.9,0.001]
[1770600878611,1.03260708,2089.8,2088.9,17.05039471]
[1770600879287,0.1024,2090.0,2088.9,17.05039471]
[1770600880283,1.19622948,2089.9,2088.9,18.24718661]
[1770600880502,1.19622948,2089.9,2088.9,17.05039471]
[1770600882096,1.19622948,2089.9,2088.9,18.24719563]
[1770600882395,4.78379577,2090.4,2089.1,1.19668756]
[1770600882606,4.78379577,2090.4,2089.2,3.342]
[1770600882981,4.78379577,2090.4,2089.2,20.39139471]
[1770600883878,0.93020708,2090.3,2089.2,20.39139471]
[1770600884480,2.12626487,2090.2,2089.2,20.39139471]
[1770600884704,2.12626487,2090.2,2089.2,21.58801914]
[1770600885209,2.12626487,2090.2,2089.2,20.39139471]
[1770600885506,2.12626487,2090.2,2089.2,21.58799186]
[1770600885708,0.002,2090.0,2089.2,21.58799186]
[1770600886835,3.64069104,2090.5,2089.3,12.02525945]
[1770600887121,4.83661562,2090.5,2089.5,0.05256242]
[1770600887325,4.83661562,2090.5,2089.3,18.41883416]
[1770600887484,4.83661562,2090.5,2089.3,1.37143945]
[1770600887684,4.83661562,2090.5,2089.4,5.779539]
[1770600887917,4.83661562,2090.5,2089.4,17.04739471]
[1770600890521,4.83661562,2090.5,2089.5,1.19645848]
[1770600891305,4.83661562,2090.5,2089.6,17.04739471]
[1770600891618,4.83661562,2090.5,2089.7,3.343]
[1770600893029,4.83661562,2090.5,2089.6,17.04739471]
[1770600893030,1.27290433,2090.4,2089.6,17.04739471]
[1770600893197,1.27290433,2089.7,2088.0,0.001]
[1770600893396,1.32546675,2089.2,2088.2,1.19719497]
[1770600893596,1.27290433,2089.2,2088.2,1.19719497]
[1770600893927,1.27290433,2089.2,2088.1,8.13198683]
[1770600894096,1.27290433,2089.2,2088.2,1.19716792]
[1770600894292,1.27290433,2089.2,2088.1,8.13198683]
[1770600894495,1.27290433,2089.2,2088.2,1.19716279]
[1770600895020,1.19668756,2089.1,2088.2,1.19716279]
[1770600895919,1.19668756,2089.1,2088.6,16.89996366]
[1770600896223,1.19668756,2089.1,2088.7,3.343]
[1770600897621,1.19668756,2089.1,2088.8,16.89896366]
[1770600898223,1.19668756,2089.1,2088.9,0.001]
[1770600899427,4.78652471,2089.2,2088.9,0.001]
[1770600900199,4.78652471,2089.2,2088.7,3.343]
[1770600901618,1.27290433,2089.1,2088.0,0.001]
[1770600901826,1.27290433,2088.9,2088.1,0.001]
[1770600902007,0.32916028,2088.8,2088.1,3.344]
[1770600902626,0.32916028,2088.8,2088.2,0.001]
[1770600903209,0.32916028,2088.8,2088.3,1.19713522]
[1770600903540,0.32916028,2088.8,2088.4,0.001]
[1770600903709,0.32816028,2088.8,2088.2,1.19720333]
[1770600903907,6.05843417,2089.7,2088.2,2.56864278]
[1770600903908,1.19651574,2089.4,2088.2,2.56864278]
[1770600904410,0.3828,2089.5,2088.2,2.56864278]
[1770600904411,1.47687908,2089.5,2088.3,1.37143945]
[1770600904624,1.47687908,2089.5,2088.2,1.19720333]
[1770600904808,1.47687908,2089.5,2088.2,2.56864278]
[1770600905210,0.2804,2089.5,2088.3,1.37143945]
[1770600905413,1.47686058,2089.5,2088.3,1.37143945]
[1770600905617,1.47686058,2089.5,2088.4,1.19708868]
[1770600906508,0.5,2089.3,2088.4,2.56852813]
[1770600907521,1.69661754,2089.3,2088.4,1.19708868]
[1770600907833,1.69299754,2089.3,2088.4,1.19708868]
[1770600909036,1.69299754,2089.3,2088.5,3.344]
[1770600909426,1.27290433,2089.2,2088.5,3.344]
[1770600909631,1.19668756,2089.1,2088.5,3.344]
[1770600910026,1.27290433,2088.7,2088.0,0.001]
[1770600910203,0.05256242,2088.3,2088.0,0.001]
[1770600910408,1.27290433,2088.7,2088.0,0.001]
[1770600910709,1.27290433,2088.4,2087.9,3.4235276]
[1770600911412,1.25918433,2088.4,2087.9,3.4235276]
[1770600911736,0.1024,2088.7,2087.9,3.4235276]
[1770600911737,0.1024,2088.5,2087.9,3.4235276]
[1770600912635,0.09514,2088.5,2087.9,3.4235276]
[1770600913030,1.19697404,2088.6,2087.9,4.62089784]
[1770600914432,1.19697404,2088.6,2087.9,3.4235276]
[1770600914813,1.27290433,2088.4,2087.9,3.4235276]
[1770600915134,1.27290433,2088.4,2087.8,0.001]
[1770600915739,1.19720333,2088.2,2087.5,3.346]
[1770600916053,1.47487969,2088.1,2087.5,0.001]
[1770600916554,1.46886969,2088.1,2087.5,0.001]
[1770600917276,1.67764697,2087.8,2086.1,1.66543685]
[1770600917553,1.67764697,2087.8,2086.7,1.19803692]
[1770600917730,1.67764697,2087.8,2086.3,4.79312404]
[1770600917936,2.82257461,2087.7,2086.3,4.79312404]
[1770600918154,0.05256242,2087.5,2086.3,4.79312404]
[1770600918557,0.05256242,2087.2,2086.2,3.345]
[1770600918733,0.05256242,2087.2,2086.2,4.54331479]
[1770600918734,1.67764697,2087.2,2086.2,4.54331479]
[1770600919351,0.05256242,2086.9,2086.2,4.54331479]
[1770600919536,1.67764697,2087.2,2086.2,4.54331479]
[1770600919847,1.25055661,2086.9,2086.2,4.54331479]
[1770600920037,1.62154455,2086.8,2085.9,1.19852246]
[1770600920238,1.67764697,2086.2,2085.0,4.79608631]
[1770600920442,0.05256242,2086.5,2085.6,4.79463772]
[1770600920633,0.05256242,2086.5,2085.7,1.19863059]
[1770600920836,0.05256242,2086.5,2085.6,1.19864509]
[1770600921030,1.67764697,2086.5,2085.3,4.79539047]
[1770600921249,1.67764697,2086.5,2085.1,8.14172545]
[1770600921250,1.62508455,2086.5,2085.4,1.19877682]
[1770600921455,0.05256242,2086.8,2085.1,3.346]
[1770600921456,1.67764697,2086.1,2085.1,3.346]
[1770600921648,1.62508455,2086.1,2085.1,4.54498144]
[1770600921847,1.19835106,2086.2,2085.1,4.54498144]
[1770600922133,0.05256242,2086.1,2085.1,4.54498144]
[1770600922345,1.67764697,2086.1,2085.1,3.346]
[1770600922539,0.05256242,2085.8,2085.1,3.346]
[1770600922870,0.05256242,2085.7,2085.1,3.346]
[1770600923158,0.05256242,2085.3,2084.4,1.19938149]
[1770600923338,0.05256242,2085.0,2084.3,3.346]
[1770600923932,1.19909827,2084.9,2084.3,3.346]
[1770600924131,1.67764697,2085.3,2084.3,4.54544177]
[1770600924132,1.19892576,2085.2,2084.3,4.54544177]
[1770600924333,0.05256242,2085.4,2084.3,4.54544177]
[1770600924565,1.19869581,2085.6,2084.3,4.54544177]
[1770600924862,0.1024,2085.5,2084.3,4.54544177]
[1770600925060,0.1024,2085.5,2084.3,3.346]
[1770600925061,0.05256242,2085.2,2084.3,3.346]
[1770600925265,1.62508455,2085.4,2084.3,4.54539246]
[1770600925560,0.05256242,2085.2,2084.3,4.54539246]
[1770600925737,0.05256242,2085.2,2084.3,3.346]
[1770600926058,1.19898326,2085.1,2084.3,4.5454385]
[1770600926368,1.19898326,2085.1,2084.3,3.346]
[1770600926662,0.05256242,2084.9,2084.3,3.346]
[1770600926847,0.05256242,2084.9,2084.1,1.19954961]
[1770600927764,0.05256242,2084.9,2083.8,3.348]
[1770600927765,0.1024,2085.3,2084.3,1.19942408]
[1770600927968,0.05256242,2085.2,2084.3,1.19942408]
[1770600928738,1.25148818,2085.2,2084.0,4.79839193]
[1770600928941,1.62508455,2085.1,2084.1,3.349]
[1770600929373,0.05256242,2085.2,2084.1,3.349]
[1770600930237,1.62508455,2085.9,2084.2,1.66543685]
[1770600930468,0.05256242,2085.5,2084.2,1.66543685]
[1770600930670,0.05256242,2085.2,2084.3,1.19944345]
[1770600930977,0.1024,2085.4,2084.3,1.19944345]
[1770600931670,0.1024,2085.4,2084.3,1.14944345]
[1770600931862,0.1024,2085.7,2084.3,1.14944345]
[1770600932065,0.1024,2085.7,2084.3,2.8148803]
[1770600932374,0.1024,2085.7,2084.4,1.66543685]
[1770600932547,0.15496242,2085.7,2084.4,1.66543685]
[1770600933054,0.05256242,2085.1,2084.4,1.19938436]
[1770600933264,1.67764697,2085.4,2084.4,1.19938436]
[1770600933745,0.05256242,2085.1,2084.4,1.19938436]
[1770600933949,0.1024,2085.5,2084.4,1.19938436]
[1770600934276,0.05256242,2085.4,2084.4,1.19938436]
[1770600934581,1.62508455,2085.4,2084.4,1.19938436]
[1770600934876,1.35376013,2085.5,2084.2,4.79754365]
[1770600935054,1.35233013,2085.5,2084.2,6.4629805]
[1770600935391,4.79487616,2085.6,2084.3,1.66543685]
[1770600935392,1.19869581,2085.6,2084.3,1.66543685]
[1770600935751,0.05256242,2085.2,2084.2,4.79754365]
[1770600935986,1.67764697,2085.5,2084.6,0.001]
[1770600936363,4.79438541,2085.8,2084.6,0.001]
[1770600936857,1.2511433,2085.8,2084.6,0.001]
[1770600937759,0.1044,2085.9,2084.6,1.66643685]
[1770600938156,0.10335,2085.9,2084.6,1.66643685]
[1770600938353,0.05256242,2085.7,2084.6,0.001]
[1770600938562,0.05256242,2084.7,2083.7,0.1395276]
[1770600938765,0.1024,2084.9,2083.3,3.35]
[1770600938766,0.1024,2084.9,2083.4,2.86539845]
[1770600938970,0.05256242,2084.9,2083.4,2.86539845]
[1770600939171,0.05256242,2084.6,2083.4,2.86539845]
[1770600939458,2.87675021,2084.9,2083.4,2.86539845]
[1770600940087,1.19910324,2084.9,2083.6,1.66543685]
[1770600940296,0.05256242,2084.7,2083.4,1.1999616]
[1770600940967,1.2517831,2084.7,2083.6,1.19984641]
[1770600941882,1.19921583,2084.7,2083.6,1.19984641]
[1770600942084,0.05256242,2084.6,2083.6,1.19984641]
[1770600945684,1.19919815,2084.8,2083.6,1.19984641]
[1770600945883,0.05256242,2084.6,2083.6,1.19984641]
[1770600949690,0.05256242,2084.6,2083.8,0.001]
[1770600950681,1.19918769,2084.8,2083.8,0.001]
[1770600951201,0.15496242,2085.0,2083.8,0.001]
[1770600951986,0.5,2084.8,2083.8,0.001]
[1770600952389,0.5,2084.8,2083.8,0.004]
[1770600952562,0.05256242,2084.7,2083.8,0.004]
[1770600952986,0.05256242,2084.4,2083.8,0.004]
[1770600953183,1.58906708,2084.7,2083.8,0.004]
[1770600954092,0.05256242,2084.7,2083.8,0.004]
[1770600954272,1.25178004,2084.7,2083.8,0.004]
[1770600954872,0.05256242,2084.6,2083.8,0.004]
[1770600955098,1.58906708,2084.6,2083.8,0.004]
[1770600955694,0.1024,2085.0,2083.8,0.004]
[1770600955905,1.30145572,2085.0,2083.8,1.51598976]
[1770600956082,0.05256242,2084.8,2083.8,0.004]
[1770600956686,2.8380016,2085.0,2083.8,0.004]
[1770600956898,0.05256242,2084.8,2083.8,0.004]
[1770600957103,1.58906708,2084.7,2083.8,0.004]
[1770600957413,1.53650466,2084.6,2083.8,0.004]
[1770600957870,0.5,2084.7,2083.8,0.004]
[1770600958070,1.58906708,2084.9,2083.8,0.004]
[1770600958295,0.05256242,2084.6,2083.8,0.004]
[1770600958594,1.2517566,2084.8,2083.8,0.004]
[1770600958795,0.05256242,2084.8,2083.8,0.004]
[1770600959009,1.25321033,2085.7,2084.4,11.47139571]
[1770600959302,0.002,2085.7,2084.5,3.352]
[1770600959614,0.002,2085.7,2084.5,4.86398976]
[1770600959971,1.20066867,2085.7,2084.5,4.86398976]
[1770600960313,0.002,2085.7,2084.6,1.51198976]
[1770600960493,0.002,2085.7,2084.7,1.19921331]
[1770600961003,0.002,2085.7,2084.7,2.71120307]
[1770600961686,0.002,2085.7,2084.8,3.352]
[1770600962379,0.002,2085.7,2084.9,1.19909827]
[1770600962580,0.05256242,2085.6,2084.9,1.19909827]
[1770600962879,0.05256242,2085.6,2085.0,3.352]
[1770600963102,0.002,2085.7,2085.0,3.352]
[1770600964204,0.002,2085.5,2085.0,3.352]
[1770600964510,0.002,2085.5,2085.2,1.19892576]
[1770600967383,0.05256242,2085.1,2084.0,1.51198976]
[1770600967577,0.05256242,2085.1,2084.2,1.1994689]
[1770600967578,0.05256242,2084.8,2084.2,1.1994689]
[1770600967989,0.05256242,2084.8,2084.1,11.50111073]
[1770600967990,0.05256242,2084.8,2084.1,7.90251688]
[1770600968184,0.05256242,2084.8,2084.2,1.19949459]
[1770600968725,1.53650466,2084.7,2084.0,1.1995907]
[1770600969016,1.53650466,2084.7,2084.0,4.5515907]
[1770600969306,1.53650466,2084.7,2084.0,4.55157868]
[1770600969506,1.53650466,2084.7,2084.1,1.19955137]
[1770600970779,1.25172777,2084.8,2084.1,1.19955137]
[1770600970976,1.25172777,2084.8,2084.2,3.352]
[1770600971807,0.1024,2085.0,2084.2,3.352]
[1770600972109,0.05256242,2084.8,2084.2,3.352]
[1770600972480,0.05256242,2084.9,2084.2,3.352]
[1770600972694,2.73566045,2084.8,2084.2,3.352]
[1770600973208,0.05256242,2084.3,2083.7,4.5507499]
[1770600973381,1.58906708,2084.6,2083.8,2.93937349]
[1770600973582,0.05256242,2084.6,2083.8,1.73964742]
[1770600973782,0.05256242,2084.3,2083.8,1.73964742]
[1770600974712,1.25202199,2084.3,2083.8,1.73964742]
[1770600974913,1.25183326,2084.6,2083.8,2.93935951]
[1770600975093,1.25183326,2084.6,2083.8,1.73964742]
[1770600975497,1.25183326,2084.6,2083.8,2.93936774]
[1770600975989,1.25183326,2084.6,2083.8,1.73964742]
[1770600976190,1.25183326,2084.6,2083.4,4.79982904]
[1770600976191,0.05256242,2084.0,2083.1,4.80039832]
[1770600976397,0.05256242,2083.9,2083.3,1.20001507]
[1770600977112,1.30193006,2084.2,2083.3,1.20001507]
[1770600977987,1.30193006,2084.2,2084.0,0.001]
[1770600978488,1.30193006,2084.2,2083.8,0.001]
[1770600979014,1.25220805,2084.0,2083.8,0.001]
[1770600979716,0.05256242,2083.3,2082.7,0.003]
[1770600979903,1.60470066,2083.6,2082.7,0.003]
[1770600980104,0.05256242,2083.3,2082.7,0.003]
[1770600980411,1.60470066,2083.6,2082.7,0.003]
[1770600980612,0.05256242,2083.3,2082.7,0.003]
[1770600981119,1.2000768,2083.2,2082.7,0.003]
[1770600981734,0.05256242,2082.9,2081.9,1.20081935]
[1770600981894,1.2000768,2083.2,2082.1,1.20070258]
[1770600982236,1.2000768,2083.2,2081.9,1.20078856]
[1770600982237,0.05256242,2082.7,2081.9,1.20078856]
[1770600982591,0.05256242,2082.7,2081.5,1.51570871]
[1770600982797,0.05256242,2082.4,2081.8,1.20088302]
[1770600983097,1.20042254,2082.6,2081.6,1.20099923]
[1770600983292,0.05256242,2082.6,2081.6,1.20099923]
[1770600983521,1.20039865,2082.7,2081.6,1.20099923]
[1770600983717,1.25296107,2082.7,2081.6,1.20099923]
[1770600983922,0.05256242,2082.4,2081.6,1.20099923]
[1770600984216,1.25296107,2082.7,2081.6,1.20099923]
[1770600984426,0.05256242,2082.4,2081.6,1.20099923]
[1770600984727,1.25296107,2082.7,2081.6,1.20099923]
[1770600985129,1.25314879,2082.4,2081.4,4.80399692]
[1770600985303,0.05256242,2082.4,2081.4,4.80399692]
[1770600985629,1.20046137,2082.6,2081.4,6.31970563]
[1770600985826,1.25297167,2082.7,2081.5,1.51570871]
[1770600986028,1.20024965,2082.9,2081.6,1.51570871]
[1770600986602,0.05256242,2082.7,2081.6,1.51570871]
[1770600986802,1.20024965,2082.9,2081.6,1.51570871]
[1770600987003,0.05256242,2082.7,2081.6,1.51570871]
[1770600987205,0.05256242,2082.3,2081.3,1.20111463]
[1770600987403,1.20048019,2082.5,2081.3,1.20111463]
[1770600987600,0.05256242,2082.3,2081.3,1.20111463]
[1770600988535,4.80160091,2082.7,2081.4,1.51570871]
[1770600988736,0.05256242,2082.4,2081.4,1.51570871]
[1770600989106,0.05256242,2082.6,2081.4,1.51570871]
[1770600989317,1.20048019,2082.5,2081.5,1.20105693]
[1770600989804,0.05256242,2083.0,2081.6,1.51570871]
[1770600990127,0.05256242,2082.4,2081.5,1.20105693]
[1770600991230,0.05256242,2082.4,2081.8,0.001]
[1770600991732,0.002,2082.7,2081.5,1.51570871]
[1770600991910,1.20237365,2082.7,2081.8,3.354]
[1770600992107,0.002,2082.7,2081.8,3.354]
[1770600992432,1.25492899,2082.7,2081.8,3.354]
[1770600993011,0.05256242,2082.4,2081.8,3.354]
[1770600993412,1.20239713,2082.7,2081.9,1.20082616]
[1770600993631,1.25495955,2082.7,2081.9,1.20082616]
[1770600993935,1.25495955,2082.7,2081.8,4.55484376]
[1770600994635,0.002,2082.7,2081.9,1.51570871]
[1770600995512,0.002,2082.7,2082.1,1.51570871]
[1770600995714,0.002,2082.9,2082.1,1.51570871]
[1770600995933,1.60470066,2081.9,2080.8,0.0008323]
[1770600996131,0.05256242,2080.3,2079.7,1.51570871]
[1770600996437,0.05256242,2080.6,2079.7,1.51570871]
[1770600996438,0.30326242,2081.0,2080.3,1.20173357]
[1770600996943,0.30326242,2081.0,2080.3,1.20174358]
[1770600997316,0.30326242,2081.0,2080.3,1.20173416]
[1770600997526,1.20150126,2080.8,2080.0,8.1626039]
[1770600997839,0.05256242,2080.7,2080.0,8.1626039]
[1770600998217,0.2507,2081.0,2080.0,9.67831261]
[1770600998416,0.2507,2081.0,2080.1,1.51570871]
[1770600999239,0.2507,2081.0,2080.2,9.582531]
[1770600999441,0.15367649,2081.0,2080.3,1.51570871]
[1770600999652,4.80398109,2081.7,2080.5,1.51570871]
[1770600999653,1.20098181,2081.7,2080.5,1.51570871]
[1770600999939,1.25342975,2081.9,2080.5,1.51570871]
[1770601000148,0.25068056,2082.1,2080.7,1.51570871]
[1770601000316,1.45139224,2082.1,2080.9,1.51570871]
[1770601000515,1.50395466,2082.1,2080.9,1.51570871]
[1770601001213,0.05256242,2081.8,2080.5,1.51570871]
[1770601001418,0.05256242,2081.8,2080.4,1.20169198]
[1770601001419,0.05256242,2081.8,2080.6,4.87170871]
[1770601001618,1.25344765,2081.8,2080.8,1.20146097]
[1770601001839,1.80082783,2081.9,2080.8,1.20146097]
[1770601002038,0.05256242,2081.8,2080.8,2.71716968]
[1770601002545,1.80082783,2081.9,2080.8,2.71716968]
[1770601003041,1.80083892,2081.9,2080.8,1.20146097]
[1770601003246,1.80082833,2081.9,2080.9,1.51570871]
[1770601004150,1.20082641,2081.9,2081.0,1.2013455]
[1770601004643,0.002,2081.6,2080.5,1.51570871]
[1770601004823,0.002,2081.6,2080.4,4.80663001]
[1770601004824,0.05256242,2081.4,2080.4,4.80663001]
[1770601005030,0.05256242,2081.4,2080.6,1.2015437]
[1770601005226,0.05256242,2081.4,2080.7,1.20151389]
[1770601005432,0.05256242,2081.4,2080.6,1.20153845]
[1770601005639,0.05256242,2081.1,2080.6,1.20157205]
[1770601006045,0.05256242,2081.1,2080.7,1.2015132]
[1770601006234,1.20109082,2081.5,2080.4,1.20169198]
[1770601006550,1.20109082,2081.5,2080.5,1.46518248]
[1770601006551,0.05256242,2081.5,2080.5,1.46518248]
[1770601007121,0.05256242,2081.5,2080.6,3.356]
[1770601008527,0.05256242,2081.2,2080.6,4.55753209]
[1770601008727,0.05256242,2081.2,2080.6,1.20153209]
[1770601008929,1.20109521,2081.5,2080.7,3.356]
[1770601009254,0.05256242,2081.5,2080.7,3.356]
[1770601009647,1.20299927,2081.6,2080.7,3.356]
[1770601010330,0.05256242,2081.2,2080.6,1.20153209]
[1770601010563,0.05256242,2081.2,2080.6,4.55853209]
[1770601011057,1.20299994,2081.6,2080.6,6.02371457]
[1770601012142,0.002,2081.6,2080.6,6.02371457]
[1770601012754,0.05256242,2081.5,2080.6,6.02371457]
[1770601013359,0.002,2081.6,2080.6,6.02371457]
[1770601013656,0.05256242,2081.5,2080.6,6.02371457]
[1770601015458,0.002,2081.6,2080.6,6.02371457]
[1770601016360,0.002,2081.6,2080.7,1.46518248]
[1770601017343,0.002,2081.6,2080.8,1.20146097]
[1770601017858,0.002,2081.6,2080.9,1.46518248]
[1770601018767,0.002,2081.6,2080.8,2.66664345]
[1770601019077,0.002,2081.6,2080.9,1.46518248]
[1770601019567,0.002,2081.6,2081.1,1.46518248]
[1770601019768,0.002,2081.6,2081.2,3.357]
[1770601020373,1.20030727,2082.8,2081.4,1.46518248]
[1770601020587,0.002,2082.9,2082.1,1.5217449]
[1770601020756,0.05256242,2082.7,2081.9,3.357]
[1770601020961,0.05456242,2082.9,2081.9,4.82218248]
[1770601021156,0.05256242,2082.6,2082.0,3.357]
[1770601021390,0.05256242,2082.6,2081.1,3.357]
[1770601021391,0.05256242,2082.1,2081.1,3.357]
[1770601021559,0.05256242,2082.1,2081.1,4.82218248]
[1770601021888,0.05256242,2082.3,2081.2,1.46518248]
[1770601022059,0.05256242,2082.6,2081.2,1.46518248]
[1770601022261,0.05256242,2082.3,2081.2,1.46518248]
[1770601022676,0.05256242,2082.3,2081.0,1.2013455]
[1770601022677,0.05256242,2082.0,2081.0,1.2013455]
[1770601022878,0.05256242,2082.0,2081.1,3.357]
[1770601023253,0.05256242,2081.7,2081.0,1.2013455]
[1770601023459,1.25354376,2081.7,2081.0,1.2013455]
[1770601023684,1.25354376,2081.7,2081.0,4.5583455]
[1770601023987,0.05256242,2081.4,2080.9,4.55836483]
[1770601024209,0.05256242,2081.4,2080.9,1.20140033]
[1770601024487,0.05256242,2081.4,2080.8,1.20145221]
[1770601024659,0.05256242,2081.7,2080.9,1.20139112]
[1770601024863,1.25351023,2081.7,2080.9,1.20139112]
[1770601025796,1.25350545,2081.7,2080.8,4.80561295]
[1770601026870,0.05256242,2081.4,2080.7,4.55851503]
[1770601027099,0.05256242,2081.1,2080.7,1.20151503]
[1770601027709,0.05256242,2081.4,2080.6,4.80628933]
[1770601028089,0.05256242,2081.1,2080.5,3.357]
[1770601028281,0.05256242,2081.0,2080.5,4.55859482]
[1770601028487,1.2536896,2081.4,2080.5,4.55859482]
[1770601028696,0.05256242,2081.0,2080.5,4.55859482]
[1770601029215,0.05256242,2080.7,2080.2,1.20279305]
[1770601029697,0.05256242,2080.7,2080.3,1.20174887]
[1770601030004,0.05256242,2080.7,2080.2,0.001]
[1770601030582,1.20144064,2080.9,2080.2,0.001]
[1770601030905,0.05256242,2080.7,2080.2,0.001]
[1770601031088,0.05256242,2080.7,2080.5,0.001]
[1770601032398,1.25409632,2080.7,2080.2,0.001]
[1770601032603,0.05256242,2080.4,2080.2,0.001]
[1770601032908,0.05256242,2080.4,2079.5,1.60471008]
[1770601032909,1.40166503,2080.3,2079.5,0.1395276]
[1770601033114,1.40166503,2080.3,2078.9,1.46518248]
[1770601033115,0.05256242,2079.7,2079.2,1.20234881]
[1770601033296,0.05256242,2079.7,2079.2,1.20236341]
[1770601033611,0.65256242,2080.2,2079.3,1.20228511]
[1770601033917,0.05256242,2079.9,2079.0,1.2025012]
[1770601034916,1.20186529,2080.1,2079.3,0.003]
[1770601035212,4.80658768,2080.5,2079.4,3.358]
[1770601035213,1.20163422,2080.5,2079.4,3.358]
[1770601035797,1.25418088,2080.6,2079.5,1.20221207]
[1770601036227,1.34465281,2080.9,2079.6,1.32447517]
[1770601036423,0.05256242,2080.8,2079.6,1.32447517]
[1770601036607,1.25393581,2081.0,2079.6,1.27447517]
[1770601037004,1.25393581,2081.0,2079.2,4.80884828]
[1770601037005,1.45886478,2079.7,2078.1,1.69437474]
[1770601037228,1.45886478,2079.7,2078.1,5.06287996]
[1770601037229,0.05256242,2079.0,2078.1,5.06287996]
[1770601037417,0.05256242,2078.7,2078.1,1.20297454]
[1770601037617,0.05256242,2078.7,2078.0,1.2030758]
[1770601037821,0.05256242,2078.7,2077.6,4.81315003]
[1770601037822,1.45886478,2078.7,2077.6,4.81315003]
[1770601038136,0.05256242,2078.8,2077.3,1.3347707]
[1770601038297,0.05256242,2078.5,2077.1,4.81417598]
[1770601038502,0.05256242,2078.5,2077.2,3.358]
[1770601039205,0.05256242,2078.2,2077.1,4.81417598]
[1770601039420,0.05256242,2078.5,2077.3,3.358]
[1770601039618,0.05256242,2078.4,2077.3,3.308]
[1770601039814,1.40630236,2078.7,2077.3,3.308]
[1770601040028,0.05256242,2078.8,2077.4,1.20342736]
[1770601040201,1.2025012,2079.0,2077.5,1.3347707]
[1770601040395,0.05256242,2078.9,2077.5,1.3347707]
[1770601040603,0.05256242,2078.8,2077.5,1.3347707]
[1770601040831,0.05256242,2079.2,2077.7,1.3347707]
[1770601041125,0.05256242,2079.0,2077.7,1.3347707]
[1770601041504,0.05256242,2078.9,2077.7,1.3347707]
[1770601041700,1.40630236,2079.3,2077.7,1.3347707]
[1770601041900,1.35725289,2079.4,2078.1,1.20302199]
[1770601042131,0.05256242,2079.1,2078.2,3.359]
[1770601042503,0.05256242,2079.0,2078.2,3.359]
[1770601042710,2.76355525,2079.4,2078.2,3.359]
[1770601042934,0.05256242,2079.1,2078.2,3.359]
[1770601043929,2.76355525,2079.4,2078.2,3.359]
[1770601044120,0.05256242,2079.0,2078.3,1.20290622]
[1770601044324,0.05256242,2078.7,2078.1,1.20301262]
[1770601044636,0.05256242,2079.0,2078.2,1.20295324]
[1770601044931,1.20235613,2079.3,2078.2,1.20295324]
[1770601045630,1.35727263,2079.4,2078.2,1.20295324]
[1770601046004,0.05256242,2079.4,2078.1,4.81185641]
[1770601046203,0.05256242,2079.8,2078.5,2.05548]
[1770601046626,1.25448228,2080.1,2078.6,4.2186467]
[1770601046835,0.05256242,2080.1,2078.7,1.3347707]
[1770601047030,2.60808109,2080.3,2078.8,8.1070017]
[1770601047234,0.05256242,2080.1,2078.9,3.36]
[1770601047406,0.05256242,2079.9,2078.8,4.6947707]
[1770601047603,1.40630236,2079.8,2078.1,0.05256242]
[1770601047848,0.05256242,2079.9,2077.5,0.001]
[1770601047849,0.05256242,2077.7,2077.5,0.001]
[1770601048014,0.05256242,2077.7,2076.4,1.58568176]
[1770601048015,0.05256242,2077.7,2076.5,1.20394895]
[1770601048214,0.05256242,2077.9,2076.5,1.20394895]
[1770601048447,0.05256242,2077.7,2076.6,2.71648]
[1770601048615,0.05256242,2078.0,2076.6,2.71648]
[1770601049310,0.05256242,2077.7,2076.6,2.42148]
[1770601049813,0.05256242,2077.7,2076.5,1.20394895]
[1770601050215,0.09020693,2351.2,2076.9,12.04265047]
[1770601050216,0.05256242,2078.8,2076.9,12.04265047]
[1770601050415,0.05256242,2077.4,2076.5,1.20394895]
[1770601050635,0.05256242,2077.7,2076.5,1.20394895]
[1770601050837,0.05256242,2077.4,2076.5,1.20394895]
[1770601051052,0.05256242,2077.7,2076.5,1.20394895]
[1770601051553,0.05256242,2078.0,2076.5,1.20394895]
[1770601051742,0.05256242,2077.7,2076.5,1.20394895]
[1770601052140,1.40630236,2077.9,2076.5,4.56494895]
[1770601052339,0.05256242,2077.7,2076.5,4.56494895]
[1770601052537,1.25564707,2078.0,2076.6,8.813673]
[1770601052756,1.25565521,2078.0,2076.6,8.813673]
[1770601052956,0.05256242,2077.9,2076.6,1.3347707]
[1770601053435,1.3054045,2078.2,2076.6,1.3347707]
[1770601053631,0.05256242,2078.0,2076.7,8.123274]
[1770601053834,0.05256242,2078.0,2076.7,7.123274]
[1770601054033,0.05256242,2078.0,2076.7,5.651464]
[1770601054237,0.05256242,2078.0,2076.8,1.20377503]
[1770601054633,0.1024,2078.2,2076.8,1.20377503]
[1770601054853,0.05256242,2078.0,2076.8,2.53854573]
[1770601055056,0.6,2078.0,2076.9,7.741924]
[1770601055229,0.6,2078.0,2076.9,5.34849]
[1770601055430,1.25551122,2078.3,2076.9,5.34849]
[1770601055631,0.05256242,2078.3,2076.9,5.34849]
[1770601056058,0.05256242,2078.3,2076.9,1.3347707]
[1770601056260,1.25551292,2078.3,2077.0,1.20365912]
[1770601056853,0.05256242,2078.2,2077.0,1.20365912]
[1770601057055,0.05256242,2078.2,2077.0,1.20465912]
[1770601057253,0.05256242,2078.1,2077.0,1.20465912]
[1770601057463,0.05256242,2077.8,2077.0,1.20465912]
[1770601057834,1.45886478,2078.1,2077.0,1.20465912]
[1770601058030,0.05256242,2077.8,2077.0,1.20465912]
[1770601058243,1.45886478,2078.1,2077.0,1.20465912]
[1770601058443,0.05256242,2077.8,2077.0,0.001]
[1770601058643,1.20307988,2078.0,2077.0,0.001]
[1770601058834,0.05256242,2077.8,2077.0,0.001]
[1770601059053,1.20307988,2078.0,2077.0,0.001]
[1770601059255,0.05256242,2077.8,2077.0,0.001]
[1770601059461,1.20307988,2078.0,2077.0,0.001]